bitfinex/quotes_ETHUSD_20260107
["timestamp","ask_amount","ask_price","bid_price","bid_amount"]
[1767816193979,0.61698275,3146.6,3145.5,0.92959915]
[1767816194585,0.61698275,3146.6,3145.6,0.92959915]
[1767816195397,0.833,3146.6,3145.7,0.92959915]
[1767816195599,3.17813443,3146.5,3145.7,0.92959915]
[1767816196110,4.01106573,3146.6,3145.7,4.10852629]
[1767816196709,4.01106573,3146.6,3145.7,0.92959915]
[1767816197983,4.01106573,3146.6,3145.7,4.10853245]
[1767816198311,7.18913146,3146.6,3145.7,0.92959915]
[1767816198509,0.71891315,3146.5,3145.7,0.92959915]
[1767816198704,0.71891315,3146.5,3145.7,4.10853199]
[1767816199110,0.71891315,3146.5,3145.7,0.92959915]
[1767816199621,0.71891315,3146.5,3145.8,0.92959915]
[1767816199821,0.833,3146.6,3145.8,0.92959915]
[1767816200422,4.01109681,3146.6,3145.8,0.92959915]
[1767816201624,7.18919362,3146.6,3145.8,0.92959915]
[1767816201925,7.96110288,3146.6,3145.8,0.92959915]
[1767816202131,4.78300607,3146.6,3145.8,0.92959915]
[1767816205834,4.01109681,3146.6,3145.8,0.92959915]
[1767816206032,4.01109681,3146.6,3146.1,0.93060016]
[1767816208112,0.834,3146.7,3146.1,0.93060016]
[1767816208308,3.17762948,3147.0,3146.1,0.93060016]
[1767816208537,1.4695158,3146.9,3146.1,0.93060016]
[1767816208736,0.6355158,3146.9,3146.1,0.93060016]
[1767816208939,0.834,3146.8,3146.1,0.93060016]
[1767816209103,0.81131936,3146.7,3146.1,2.02e-06]
[1767816209508,0.834,3146.8,3146.1,0.92960117]
[1767816209708,0.22808326,3146.7,3146.1,0.92960117]
[1767816209907,0.834,3146.8,3146.1,0.92960117]
[1767816210134,6.35525896,3147.0,3146.1,0.92960117]
[1767816210324,3.17783144,3146.8,3146.1,0.92960117]
[1767816213134,6.35566288,3146.8,3146.1,0.92960117]
[1767816214036,3.17783144,3146.8,3146.1,0.92960117]
[1767816214427,6.35566288,3146.8,3146.1,0.92960117]
[1767816214802,3.17783144,3146.8,3146.1,0.92960117]
[1767816215210,4.01183144,3146.8,3146.1,0.92960117]
[1767816216924,7.18966288,3146.8,3146.1,0.92960117]
[1767816217127,7.96093781,3146.8,3146.1,0.92960117]
[1767816219144,4.01183144,3146.8,3146.1,0.92960117]
[1767816219641,0.77120816,3147.5,3146.1,0.92960117]
[1767816219851,1.60520816,3147.4,3146.2,0.9736357]
[1767816220016,0.77117535,3147.3,3146.2,0.9736357]
[1767816221338,7.12599802,3147.2,3146.2,0.9736357]
[1767816221517,0.7125998,3147.1,3146.2,0.9736357]
[1767816222037,0.7125998,3147.1,3146.1,2.02e-06]
[1767816222038,0.81083122,3147.0,3146.1,2.02e-06]
[1767816222214,0.77111086,3146.8,3146.1,2.02e-06]
[1767816223048,0.77107917,3146.6,3145.8,0.002]
[1767816223251,1.13199049,3146.5,3145.8,0.002]
[1767816223419,3.17833645,3146.3,3145.8,0.002]
[1767816224245,6.3566729,3146.3,3145.8,0.002]
[1767816224448,3.17833645,3146.3,3145.8,0.002]
[1767816225624,0.834,3146.3,3145.8,0.9756357]
[1767816226233,3.53909322,3146.5,3145.8,0.9756357]
[1767816226435,0.67171401,3146.4,3145.8,0.9756357]
[1767816227659,4.6839757,3146.4,3145.8,0.9756357]
[1767816229624,4.6839757,3146.4,3145.8,0.97463973]
[1767816231246,4.68395036,3146.4,3145.8,0.97463973]
[1767816231428,1.50571401,3146.4,3145.8,0.97463973]
[1767816232161,4.6839828,3146.4,3145.8,0.97463973]
[1767816232339,1.50571401,3146.4,3145.8,0.97463973]
[1767816232542,4.68396138,3146.4,3145.8,0.97463973]
[1767816233554,1.50571401,3146.4,3145.8,0.97463973]
[1767816233763,0.834,3146.4,3145.8,0.97463973]
[1767816234259,4.01223645,3146.4,3145.8,0.97463973]
[1767816234424,0.834,3146.4,3145.8,0.97463973]
[1767816235753,0.001,3146.5,3145.8,0.97463973]
[1767816235940,0.834,3146.4,3145.8,0.97463973]
[1767816236141,0.001,3146.5,3145.9,0.9736357]
[1767816236464,0.834,3147.3,3146.5,0.9736357]
[1767816236663,1.60469884,3147.3,3146.5,0.97245027]
[1767816237857,6.3548551,3147.2,3146.5,0.97245027]
[1767816239454,3.17742755,3147.2,3146.5,0.97245027]
[1767816240167,6.3548551,3147.2,3146.5,0.97245027]
[1767816240575,3.17742755,3147.2,3146.5,0.97245027]
[1767816241139,3.1771247,3147.5,3146.6,0.9736357]
[1767816241381,4.0111247,3147.5,3146.8,0.9736357]
[1767816241859,7.18825263,3147.5,3146.8,0.9736357]
[1767816242168,0.001,3146.9,3146.8,0.9736357]
[1767816242371,0.77267708,3146.9,3146.2,0.90982219]
[1767816242568,0.77267708,3146.9,3145.3,4.96396555]
[1767816242569,0.77167708,3146.8,3145.9,0.90982219]
[1767816242742,0.77167708,3146.8,3146.0,0.90982219]
[1767816243437,0.001,3146.9,3146.0,0.90982219]
[1767816244065,6.35646092,3146.9,3146.0,0.90982219]
[1767816244272,0.03972289,3146.8,3146.0,0.90982219]
[1767816244840,0.8113511,3146.8,3145.8,0.91082622]
[1767816245074,0.77160419,3146.6,3145.8,0.91082622]
[1767816245288,0.834,3146.5,3145.8,0.91082622]
[1767816245575,1.76260016,3146.5,3145.8,0.75282622]
[1767816246145,0.834,3146.5,3145.8,0.75282622]
[1767816248158,4.01216298,3146.5,3145.8,0.75282622]
[1767816248355,0.834,3146.5,3145.8,0.75282622]
[1767816248756,0.001,3146.9,3145.8,0.75282622]
[1767816248757,0.001,3146.9,3145.9,0.90982219]
[1767816249482,4.01125357,3147.4,3146.7,0.90982219]
[1767816249676,0.834,3147.4,3146.7,0.90982219]
[1767816250080,0.834,3147.5,3146.7,0.90982219]
[1767816250286,0.834,3147.5,3146.8,0.90982219]
[1767816250448,0.834,3147.5,3146.9,0.90982219]
[1767816251658,0.834,3147.7,3146.9,0.90982219]
[1767816252382,0.834,3147.7,3147.1,0.90982219]
[1767816252782,0.834,3147.7,3146.4,3.17820328]
[1767816252783,0.96815238,3147.6,3146.7,0.90982219]
[1767816253690,0.001,3147.5,3146.7,0.90982219]
[1767816253873,0.9294177,3147.5,3146.7,0.90982219]
[1767816254456,3.17722564,3147.4,3146.7,0.90982219]
[1767816255266,0.41066433,3147.3,3146.7,0.7519816]
[1767816255688,0.41066433,3147.3,3146.5,4.08795394]
[1767816255889,0.41066433,3147.3,3146.6,0.90982219]
[1767816256303,0.41066433,3147.3,3146.6,4.08785311]
[1767816256662,0.41066433,3147.3,3146.7,0.90982219]
[1767816259991,3.17816876,3147.5,3146.8,0.7519816]
[1767816260170,0.001,3147.5,3146.8,0.7519816]
[1767816262412,0.001,3147.5,3146.9,0.90982219]
[1767816265298,0.94159999,3147.3,3146.5,0.90982219]
[1767816265598,0.04171784,3147.2,3146.5,0.90982219]
[1767816265894,0.002,3147.2,3146.5,0.90982219]
[1767816266076,0.002,3147.2,3146.6,0.90982219]
[1767816269504,0.002,3147.2,3146.7,0.90982219]
[1767816269812,0.002,3147.2,3146.6,3.17803321]
[1767816269813,0.001,3147.5,3147.2,0.90982219]
[1767816270396,0.001,3147.5,3147.0,0.90982219]
[1767816275182,0.96705813,3147.4,3146.6,4.11322096]
[1767816275607,0.96705813,3147.3,3146.6,4.11322096]
[1767816277503,0.96705813,3147.3,3146.7,0.93524063]
[1767816277913,0.002,3147.2,3146.7,0.93524063]
[1767816280321,0.002,3147.2,3146.7,4.11317138]
[1767816281007,0.002,3147.2,3146.7,0.93524063]
[1767816283116,0.002,3147.2,3146.8,0.93524063]
[1767816284219,0.836,3147.2,3146.8,0.93524063]
[1767816284605,3.17641827,3148.2,3146.9,0.93524063]
[1767816284809,0.834,3148.1,3146.9,0.93524063]
[1767816285010,0.834,3148.1,3147.1,0.93524063]
[1767816285393,0.96705813,3148.0,3147.3,0.01950652]
[1767816285806,0.96705813,3148.0,3147.3,0.95474715]
[1767816286093,0.834,3148.1,3147.3,0.95474715]
[1767816287121,0.834,3148.1,3147.5,0.93524063]
[1767816287310,0.834,3148.1,3147.6,0.93524063]
[1767816289805,0.002,3147.7,3147.6,0.93524063]
[1767816293731,0.002,3147.7,3147.6,4.11226439]
[1767816294132,0.002,3148.0,3147.6,4.11226439]
[1767816294832,0.002,3148.0,3147.6,0.93524063]
[1767816295131,0.002,3148.0,3147.7,0.93524063]
[1767816300393,4.14322007,3148.5,3147.8,0.93524063]
[1767816300513,3.1759322,3148.7,3147.8,0.93524063]
[1767816300514,4.14297549,3148.7,3147.8,0.93524063]
[1767816300713,0.96705813,3148.6,3147.8,0.93524063]
[1767816301132,4.97891756,3148.8,3147.9,0.93524063]
[1767816301314,4.97891756,3148.8,3148.1,0.93524063]
[1767816302216,0.002,3148.4,3148.1,0.93524063]
[1767816308151,0.002,3148.4,3148.2,0.91839307]
[1767816310381,0.002,3148.4,3148.3,0.91839307]
[1767816310641,0.002,3148.4,3148.1,0.91839307]
[1767816310848,0.002,3148.4,3147.9,0.91839307]
[1767816311053,0.002,3148.4,3147.9,4.50461706]
[1767816311252,0.002,3148.7,3148.4,0.91839307]
[1767816311452,0.002,3149.3,3148.3,0.91839307]
[1767816311773,0.92195623,3149.2,3148.3,0.91839307]
[1767816311944,0.92195623,3149.2,3148.4,0.91839307]
[1767816312143,4.09746255,3149.2,3148.4,0.91839307]
[1767816314260,0.002,3149.0,3148.4,0.91839307]
[1767816314461,0.002,3149.0,3146.9,3.17766215]
[1767816314462,0.92195623,3148.6,3147.1,0.91839307]
[1767816314778,0.92195623,3148.3,3147.2,0.91839307]
[1767816315076,0.92195623,3148.2,3147.4,0.91839307]
[1767816315441,1.75495623,3148.5,3147.5,0.91839307]
[1767816315866,0.92195623,3148.4,3147.5,0.91839307]
[1767816316761,0.92195623,3148.3,3147.6,0.91839307]
[1767816316962,0.833,3148.3,3147.6,0.91839307]
[1767816318774,4.93131152,3148.3,3147.6,0.91839307]
[1767816319361,0.833,3148.3,3147.7,0.91839307]
[1767816319563,0.002,3149.0,3147.7,0.91839307]
[1767816319751,0.002,3149.0,3148.0,0.91839307]
[1767816320150,0.002,3149.0,3148.2,0.91839307]
[1767816320351,0.002,3149.0,3148.4,0.91839307]
[1767816321350,0.002,3149.0,3148.6,0.91839307]
[1767816325779,0.002,3149.0,3148.4,0.91839307]
[1767816326684,0.92195623,3148.9,3147.8,0.91839307]
[1767816326887,0.92195623,3148.7,3147.5,4.09549433]
[1767816327182,0.49523845,3149.0,3147.3,0.91839307]
[1767816327183,0.92195623,3148.3,3147.3,0.91839307]
[1767816327397,0.92195623,3148.3,3147.0,0.91939307]
[1767816327683,0.92195623,3147.7,3147.0,0.001]
[1767816327853,0.92195623,3147.5,3147.0,0.001]
[1767816328280,1.41327267,3147.6,3147.0,0.001]
[1767816328765,2.3352289,3147.6,3147.0,0.001]
[1767816329165,0.92195623,3147.5,3147.0,0.001]
[1767816329793,3.17722564,3147.4,3147.0,0.001]
[1767816330596,0.92195623,3147.3,3147.0,0.001]
[1767816330886,0.92195623,3147.3,3146.4,0.91839307]
[1767816331281,0.92195623,3147.3,3146.3,3.17826028]
[1767816331282,0.92195623,3147.3,3146.5,4.0965079]
[1767816331659,4.09932574,3147.3,3146.5,0.91839307]
[1767816331891,0.92195623,3147.3,3146.5,4.09651292]
[1767816332056,0.92195623,3147.3,3146.6,0.99122404]
[1767816332256,3.67050303,3147.4,3146.6,0.99122404]
[1767816332757,0.58027267,3147.3,3146.6,0.99122404]
[1767816333568,0.96932745,3147.5,3146.6,0.99122404]
[1767816333880,3.17722564,3147.4,3146.6,0.99122404]
[1767816334484,6.35445128,3147.4,3146.6,0.99122404]
[1767816335263,3.17722564,3147.4,3146.6,0.99122404]
[1767816335463,3.17722564,3147.4,3146.7,0.99122404]
[1767816338399,0.96932745,3148.4,3146.9,0.99222404]
[1767816338588,3.17611561,3148.5,3147.1,0.99122404]
[1767816338893,3.17602222,3148.6,3147.3,0.99122404]
[1767816339097,0.96932745,3148.8,3147.5,0.99122404]
[1767816339283,0.002,3149.0,3147.7,0.99122404]
[1767816339472,0.002,3149.0,3147.9,0.99122404]
[1767816339473,3.1776579,3149.0,3147.9,0.99122404]
[1767816340792,0.002,3149.0,3148.1,0.99122404]
[1767816346106,0.002,3149.0,3148.2,0.99122404]
[1767816346308,0.002,3149.3,3148.7,0.99122404]
[1767816346484,0.002,3149.3,3148.1,9.5295417]
[1767816346485,3.17671555,3149.9,3149.1,0.99122404]
[1767816346685,0.002,3149.9,3149.1,0.99122404]
[1767816346880,3.17673745,3149.9,3149.1,0.99122404]
[1767816347510,6.3514749,3149.9,3149.1,0.99122404]
[1767816348185,3.17673745,3149.9,3149.1,0.99122404]
[1767816348414,3.17673745,3149.9,3149.1,1.40790733]
[1767816351125,0.96932745,3149.8,3148.9,0.99122404]
[1767816351283,0.96932745,3149.8,3148.7,4.16711585]
[1767816351487,0.96932745,3149.8,3148.8,0.99122404]
[1767816351806,0.73208024,3149.7,3149.0,0.99122404]
[1767816352012,3.17673745,3149.9,3149.0,0.99122404]
[1767816352408,3.17673745,3149.9,3149.1,0.99122404]
[1767816353216,3.17673745,3149.9,3149.2,0.99122404]
[1767816353388,0.002,3149.9,3149.3,0.99122404]
[1767816355401,0.002,3149.9,3149.1,3.17545461]
[1767816355402,0.002,3149.9,3149.5,0.99122404]
[1767816355723,0.002,3149.9,3149.6,0.734164]
[1767816355897,0.002,3149.9,3149.5,0.99122404]
[1767816357528,0.002,3149.9,3149.6,0.99122404]
[1767816358727,0.002,3149.9,3149.4,3.17518089]
[1767816358728,0.002,3149.9,3149.4,4.16640842]
[1767816358914,0.002,3149.9,3149.5,4.16631277]
[1767816359122,0.002,3149.9,3149.6,1.40785532]
[1767816360420,0.002,3150.2,3150.0,0.99122404]
[1767816362902,0.002,3150.2,3149.6,1.35982126]
[1767816363134,0.002,3150.2,3149.6,0.94318998]
[1767816363528,0.002,3150.2,3149.6,4.11817495]
[1767816365003,1.01803771,3150.2,3149.1,0.94318998]
[1767816365209,1.01803771,3150.2,3149.3,0.94318998]
[1767816365210,0.97835769,3150.2,3149.3,0.94318998]
[1767816366143,0.97835769,3150.2,3149.1,3.17547941]
[1767816366350,0.97635769,3150.0,3149.1,4.11866939]
[1767816367040,0.97635769,3150.0,3149.1,3.17547941]
[1767816368214,0.97635769,3150.0,3149.1,6.35098987]
[1767816368414,0.97635769,3149.9,3149.2,0.63509899]
[1767816369708,3.17454731,3150.1,3149.2,0.63509899]
[1767816369909,4.150905,3150.1,3149.3,0.94318998]
[1767816373348,4.150905,3150.1,3149.3,4.11849751]
[1767816373936,0.002,3150.2,3149.4,0.94318998]
[1767816374135,0.002,3150.2,3149.6,0.94318998]
[1767816374717,0.002,3150.2,3149.7,3.17490554]
[1767816374943,0.002,3150.2,3149.8,0.94318998]
[1767816378759,0.002,3150.2,3149.7,0.01481089]
[1767816379053,0.002,3150.2,3149.6,4.11814507]
[1767816379273,0.002,3150.2,3149.7,1.35500449]
[1767816379766,0.002,3150.2,3149.4,0.94418998]
[1767816379975,0.97835769,3150.2,3149.4,0.94418998]
[1767816380173,0.97835769,3150.2,3149.4,0.001]
[1767816380333,0.97635769,3150.0,3149.4,0.001]
[1767816380533,0.73253625,3149.9,3149.4,0.001]
[1767816380762,1.70889394,3149.9,3149.4,0.001]
[1767816383463,0.73253625,3149.9,3149.4,0.001]
[1767816383664,0.833,3150.0,3149.4,0.94418998]
[1767816385168,4.00761611,3150.0,3149.4,0.94418998]
[1767816385365,0.833,3150.0,3149.4,0.94418998]
[1767816386465,0.833,3150.0,3149.7,0.001]
[1767816387978,3.17642651,3150.2,3149.7,0.001]
[1767816387979,0.002,3150.2,3149.7,0.94418998]
[1767816388145,0.002,3150.2,3149.7,0.92318364]
[1767816393263,0.90759107,3150.2,3149.4,0.91853868]
[1767816394683,3.17450239,3150.1,3149.4,0.91853868]
[1767816395482,4.08203264,3150.2,3149.4,4.09373622]
[1767816395660,4.80786787,3150.2,3149.4,4.09373622]
[1767816396061,4.80786787,3150.2,3149.4,0.91853868]
[1767816396262,0.90559107,3150.1,3149.4,0.91853868]
[1767816396671,4.08018937,3150.1,3149.4,0.91853868]
[1767816397689,0.9452736,3150.0,3149.4,0.001]
[1767816397857,0.90559107,3149.8,3149.4,0.001]
[1767816398279,0.90559107,3149.8,3149.7,0.001]
[1767816398560,0.34767589,3149.9,3149.7,0.001]
[1767816398872,3.17480474,3149.8,3149.7,0.001]
[1767816399078,3.17480474,3149.8,3149.4,0.001]
[1767816399277,0.72583523,3149.8,3149.4,0.91853868]
[1767816399578,3.17452681,3150.1,3149.4,0.91853868]
[1767816400790,0.002,3150.4,3149.4,0.91853868]
[1767816400791,0.002,3150.4,3150.0,0.91753868]
[1767816401085,0.002,3150.4,3150.1,0.91753868]
[1767816405106,0.002,3150.4,3150.1,4.09203976]
[1767816405598,0.002,3150.4,3150.1,0.91753868]
[1767816408089,0.002,3150.4,3149.9,0.91753868]
[1767816408601,0.002,3150.4,3149.9,4.09224075]
[1767816408786,0.002,3150.4,3150.0,0.91753868]
[1767816409707,0.002,3150.4,3150.1,0.91753868]
[1767816410308,0.002,3150.1,3149.7,0.91853868]
[1767816410714,0.002,3150.1,3149.7,4.09339479]
[1767816410903,0.002,3150.1,3149.7,4.82024238]
[1767816411409,0.002,3150.1,3149.7,1.64538627]
[1767816411607,0.002,3150.1,3149.7,0.91853868]
[1767816411813,0.002,3150.1,3149.5,3.17507333]
[1767816411814,0.90759107,3150.1,3149.5,0.91753868]
[1767816411994,0.90559107,3149.9,3149.4,0.001]
[1767816412314,0.002,3150.1,3149.4,0.91853868]
[1767816412315,4.08213506,3150.1,3149.4,0.91853868]
[1767816413516,7.25667905,3150.1,3149.4,0.91853868]
[1767816413679,1.63125898,3150.0,3149.4,0.91853868]
[1767816414611,1.63125898,3150.0,3149.4,4.09373215]
[1767816414794,0.72566791,3150.0,3149.4,4.09373215]
[1767816415116,0.72566791,3150.0,3149.4,0.91853868]
[1767816415529,4.80587746,3150.0,3149.4,0.91853868]
[1767816415834,0.34784321,3149.9,3149.4,0.91853868]
[1767816415984,0.90559107,3150.0,3149.4,0.91853868]
[1767816416185,0.002,3150.1,3149.5,0.91753868]
[1767816416819,3.17651355,3150.1,3149.5,0.91753868]
[1767816417331,0.002,3150.1,3149.5,0.91753868]
[1767816418726,0.41020334,3150.1,3149.5,0.91753868]
[1767816419623,1.31579441,3150.1,3149.5,0.91753868]
[1767816419927,0.90559107,3150.0,3149.4,0.91853868]
[1767816421239,0.002,3150.1,3149.4,0.91853868]
[1767816421555,0.002,3150.1,3149.5,0.98162775]
[1767816421904,3.17650843,3150.1,3149.5,0.98162775]
[1767816422425,4.08683414,3150.1,3149.7,0.001]
[1767816422732,4.81295807,3150.1,3149.7,0.001]
[1767816423045,4.01917124,3150.1,3149.7,0.001]
[1767816423239,0.95000824,3150.0,3149.7,0.001]
[1767816423399,0.91032571,3150.0,3149.7,0.001]
[1767816424506,0.9500095,3149.9,3148.8,0.90795298]
[1767816425234,0.91032571,3149.7,3148.8,0.90795298]
[1767816425556,0.91032571,3149.7,3148.8,4.49213588]
[1767816425715,0.91032571,3149.7,3148.9,0.90795298]
[1767816427131,4.08529544,3149.7,3148.9,0.90795298]
[1767816427813,4.08529544,3149.7,3148.9,4.08366317]
[1767816428151,4.08529544,3149.7,3149.0,0.90795298]
[1767816428922,0.91032571,3149.7,3149.0,0.90795298]
[1767816429240,4.08507118,3149.9,3149.2,0.90795298]
[1767816429442,0.91032571,3149.9,3149.2,0.90795298]
[1767816429840,4.08505916,3149.9,3149.2,0.90795298]
[1767816430733,0.91032571,3149.8,3149.0,0.76678199]
[1767816430933,0.91032571,3149.8,3148.8,4.49211118]
[1767816431327,0.91032571,3149.6,3148.9,0.90795298]
[1767816432522,0.833,3149.9,3148.9,0.90795298]
[1767816433054,1.74332571,3149.9,3148.9,0.90795298]
[1767816433753,4.91806531,3149.9,3149.2,0.90895298]
[1767816433950,0.002,3149.7,3149.2,0.90895298]
[1767816434142,0.002,3149.7,3149.3,0.90795298]
[1767816442832,0.002,3149.7,3149.2,0.001]
[1767816446834,0.002,3149.7,3149.2,0.90895298]
[1767816447336,0.002,3149.4,3149.2,0.90895298]
[1767816448764,0.002,3149.7,3149.2,0.90895298]
[1767816448765,0.002,3149.7,3149.4,0.90795298]
[1767816449064,0.002,3150.0,3149.7,0.90795298]
[1767816452469,0.90506976,3149.8,3149.2,0.001]
[1767816452655,6.16853898,3149.9,3149.2,0.001]
[1767816452656,0.90506976,3149.6,3149.2,0.001]
[1767816456459,4.08009814,3149.6,3149.2,0.001]
[1767816456659,0.90506976,3149.6,3149.2,0.001]
[1767816457378,4.08009465,3149.6,3149.2,0.001]
[1767816457976,0.90506976,3149.6,3149.2,0.001]
[1767816458777,4.08009489,3149.6,3149.2,0.001]
[1767816459151,0.002,3149.4,3149.2,0.001]
[1767816459465,0.90506976,3149.3,3148.6,0.95370156]
[1767816459866,0.90506976,3149.2,3148.6,0.95370156]
[1767816460063,0.90506976,3149.2,3148.1,0.833]
[1767816460064,0.90506976,3149.2,3148.4,0.95370156]
[1767816460371,0.90506976,3149.2,3148.4,4.12990701]
[1767816460583,0.90506976,3149.2,3148.5,4.12980667]
[1767816461060,0.90506976,3149.2,3148.5,0.95370156]
[1767816461260,0.40804529,3149.1,3148.5,0.95370156]
[1767816461470,0.90506976,3149.2,3148.5,0.95370156]
[1767816462071,4.0805431,3149.2,3148.5,0.95370156]
[1767816462893,0.90506976,3149.1,3148.5,0.95370156]
[1767816464087,0.90506976,3149.1,3148.5,4.12981293]
[1767816464581,0.90506976,3149.1,3148.5,0.95370156]
[1767816467880,4.08058212,3149.1,3148.5,0.95370156]
[1767816468070,0.90506976,3149.0,3148.3,0.95370156]
[1767816471195,4.08073401,3149.0,3148.6,0.001]
[1767816472567,0.90506976,3148.9,3148.6,0.001]
[1767816475176,0.90506976,3148.8,3148.0,0.95370156]
[1767816475372,0.90506976,3148.8,3148.1,0.41303998]
[1767816475581,0.90506976,3148.8,3148.1,1.36674154]
[1767816475754,0.90506976,3148.8,3148.2,0.95370156]
[1767816477887,0.90506976,3148.7,3147.8,0.1825224]
[1767816478076,0.40808834,3148.6,3148.0,0.95370156]
[1767816478387,0.90506976,3148.7,3148.0,0.95370156]
[1767816479969,4.12076616,3148.7,3148.0,0.95370156]
[1767816480185,0.90506976,3148.6,3148.0,0.95370156]
[1767816480487,4.08092282,3148.8,3148.0,4.1303192]
[1767816480674,4.08092282,3148.8,3148.1,0.95370156]
[1767816481189,0.90506976,3148.7,3148.1,0.95370156]
[1767816481489,0.03970018,3148.6,3148.1,0.95370156]
[1767816481660,0.90506976,3148.6,3147.9,4.13041267]
[1767816481988,0.90506976,3148.6,3148.0,0.93869623]
[1767816482192,1.63074957,3148.6,3148.0,0.93869623]
[1767816482884,1.63074957,3148.6,3148.4,0.001]
[1767816483261,4.80676777,3148.6,3148.4,0.001]
[1767816484093,7.98278597,3148.6,3148.4,0.001]
[1767816484301,0.97561958,3148.5,3147.8,0.93869623]
[1767816484510,1.32345089,3148.5,3147.8,0.93869623]
[1767816485007,0.97561958,3148.4,3147.8,0.93869623]
[1767816485411,0.38753275,3148.5,3147.8,0.93869623]
[1767816485572,4.15163778,3148.6,3147.8,0.93869623]
[1767816485974,0.97561958,3148.6,3148.0,0.93869623]
[1767816486296,4.15165951,3148.6,3148.0,0.93869623]
[1767816486908,0.97561958,3148.5,3147.7,3.17687193]
[1767816487412,0.97561958,3148.5,3147.6,3.17695288]
[1767816487616,0.97561958,3148.5,3147.6,3.58851779]
[1767816488409,0.94099889,3148.3,3147.6,3.58851779]
[1767816490010,0.94099889,3148.3,3147.6,4.52738764]
[1767816490211,0.94099889,3148.5,3147.7,0.93886985]
[1767816490581,0.94099889,3148.5,3147.8,0.93886985]
[1767816491717,4.1171178,3148.5,3147.8,1.58871479]
[1767816492524,4.1171178,3148.5,3147.8,0.93886985]
[1767816492525,0.98070159,3148.4,3147.8,0.93886985]
[1767816493526,0.98070159,3148.4,3147.7,3.17688203]
[1767816493902,0.94099889,3148.4,3147.8,3.17680719]
[1767816494224,0.94099889,3148.4,3147.8,4.11567704]
[1767816494895,0.94099889,3148.4,3147.8,0.93886985]
[1767816495091,0.94099889,3148.4,3148.1,0.001]
[1767816496419,1.3924141,3148.4,3148.1,0.001]
[1767816496923,0.45141521,3148.4,3148.1,0.001]
[1767816497227,0.41171251,3148.4,3148.1,0.001]
[1767816498104,0.94099889,3148.6,3148.1,0.001]
[1767816498603,4.1168871,3148.8,3148.1,0.93986985]
[1767816500196,0.94099889,3148.7,3148.1,0.93986985]
[1767816501627,4.11692945,3148.7,3148.1,0.93986985]
[1767816504548,0.94099889,3148.6,3148.1,0.001]
[1767816504713,1.35269184,3148.5,3148.1,0.001]
[1767816507107,1.35469184,3148.5,3148.1,0.001]
[1767816508312,4.53081554,3148.5,3148.1,0.001]
[1767816508626,0.0397027,3148.4,3148.1,0.001]
[1767816509933,0.0397027,3148.4,3148.1,0.93986985]
[1767816510133,0.41369295,3148.5,3148.1,0.93986985]
[1767816510315,0.002,3148.5,3148.1,0.93986985]
[1767816511134,3.17813161,3148.5,3148.1,0.93986985]
[1767816511433,0.0397027,3148.4,3148.1,0.001]
[1767816512146,1.01890778,3148.4,3147.7,0.9769454]
[1767816512348,1.01890778,3148.4,3147.0,0.002]
[1767816512349,0.97920508,3148.2,3147.1,0.9769454]
[1767816512637,0.97920508,3148.0,3146.7,0.9769454]
[1767816513408,0.97920508,3148.0,3146.8,0.9769454]
[1767816514237,0.97920508,3147.8,3146.8,0.9769454]
[1767816514442,0.97920508,3147.6,3146.8,0.9769454]
[1767816515044,0.833,3147.6,3146.8,0.9769454]
[1767816515424,0.97920508,3147.5,3146.7,3.17789926]
[1767816515942,0.97920508,3147.5,3146.7,3.1779199]
[1767816516153,0.97920508,3147.8,3146.9,0.9769454]
[1767816516323,4.01065011,3148.0,3147.1,0.9769454]
[1767816516529,0.834,3148.0,3147.1,0.9769454]
[1767816517838,0.002,3148.5,3147.1,0.9769454]
[1767816518175,0.002,3148.5,3147.3,0.9769454]
[1767816518344,0.98120508,3148.5,3147.5,0.9769454]
[1767816519348,0.002,3148.5,3147.5,0.9769454]
[1767816520848,0.002,3148.5,3147.7,0.9769454]
[1767816520849,0.001,3148.2,3147.7,0.9769454]
[1767816523019,0.001,3148.2,3147.9,0.9769454]
[1767816523427,0.002,3148.8,3148.3,0.9769454]
[1767816525551,0.002,3148.8,3148.5,0.9769454]
[1767816533946,0.002,3148.8,3148.4,3.17618086]
[1767816534138,0.002,3148.8,3148.5,4.15303978]
[1767816534345,0.002,3148.8,3148.6,0.9769454]
[1767816534746,0.002,3148.8,3148.5,3.17609438]
[1767816535347,0.002,3148.8,3148.6,3.17600474]
[1767816535687,0.834,3149.3,3148.7,0.9769454]
[1767816535869,0.97920508,3149.2,3148.7,0.41529501]
[1767816536064,0.97920508,3149.2,3148.4,3.17615295]
[1767816536267,0.97920508,3149.2,3148.5,3.17608225]
[1767816536644,0.97920508,3149.2,3148.3,6.35263474]
[1767816538273,0.97920508,3149.2,3148.5,4.15306101]
[1767816538479,0.97920508,3149.2,3148.5,3.17611561]
[1767816540179,0.97920508,3149.2,3148.4,4.15313376]
[1767816540351,0.97920508,3149.2,3148.4,4.65174634]
[1767816541548,0.97868264,3149.1,3148.4,3.67480094]
[1767816543880,0.97868264,3149.1,3148.4,6.85101743]
[1767816544379,0.97868264,3149.1,3148.4,3.67480094]
[1767816544561,0.97868264,3149.1,3148.4,3.17618836]
[1767816545174,0.002,3148.9,3148.4,3.17618836]
[1767816546547,0.92689253,3148.9,3148.4,3.17618836]
[1767816547477,0.92689253,3148.9,3148.3,3.17627389]
[1767816549680,0.92689253,3148.9,3148.1,6.35303834]
[1767816549887,0.92689253,3148.9,3148.2,0.71860383]
[1767816550094,0.002,3148.9,3148.3,0.93086396]
[1767816551065,0.92489253,3148.7,3147.8,3.17676796]
[1767816551260,0.92489253,3148.7,3147.6,3.17699889]
[1767816551261,0.92489253,3148.5,3147.6,0.93086396]
[1767816551757,4.10110902,3148.4,3147.6,0.93086396]
[1767816552098,0.92489253,3148.1,3147.0,0.93086396]
[1767816552254,0.92489253,3147.7,3146.6,0.002]
[1767816552455,0.92489253,3147.6,3146.6,0.93286396]
[1767816553255,0.92489253,3147.6,3146.6,0.002]
[1767816553599,5.33781071,3147.5,3146.6,0.002]
[1767816553758,0.92489253,3146.9,3146.0,4.10949683]
[1767816553961,0.92489253,3146.7,3146.0,4.10947884]
[1767816554156,0.92489253,3146.7,3146.0,3.17861488]
[1767816554790,0.92489253,3146.7,3146.0,6.35725442]
[1767816555165,0.92489253,3146.7,3146.0,3.17861488]
[1767816557376,0.92489253,3146.7,3146.3,0.001]
[1767816557575,0.92489253,3146.6,3145.5,0.92986698]
[1767816557876,4.01193745,3146.7,3145.4,0.002]